[Event "Live Chess"]
[Site "Chess.com"]
[Date "2024.06.01"]
[Round "-"]
[White "Yegorych"]
[Black "JavaidMiah"]
[Result "0-1"]
[WhiteElo "1484"]
[BlackElo "1198"]
[TimeControl "300"]
[EndTime "12:08:27 PDT"]
[Termination "JavaidMiah won on time"]

1. d4 {[%clk 0:04:54.7]} 1... d5 {[%clk 0:04:57.5]} 2. c4 {[%clk 0:04:53.6]}
2... c6 {[%clk 0:04:56.5]} 3. Nc3 {[%clk 0:04:52.2]} 3... Nf6 {[%clk 0:04:55.8]}
4. Nf3 {[%clk 0:04:46.2]} 4... e6 {[%clk 0:04:45.3]} 5. Bg5 {[%clk 0:04:44]}
5... Nbd7 {[%clk 0:04:43.2]} 6. e3 {[%clk 0:04:42.5]} 6... Be7 {[%clk 0:04:40]}
7. c5 {[%clk 0:04:39]} 7... O-O {[%clk 0:04:38.7]} 8. Bd3 {[%clk 0:04:35.2]}
8... h6 {[%clk 0:04:37.8]} 9. Bh4 {[%clk 0:04:33]} 9... Qc7 {[%clk 0:04:33.5]}
10. Bg3 {[%clk 0:04:26.4]} 10... Qd8 {[%clk 0:04:23.7]} 11. Ne5 {[%clk
0:04:23.4]} 11... Nxe5 {[%clk 0:04:04.1]} 12. Bxe5 {[%clk 0:04:23.3]} 12... Nd7
{[%clk 0:04:03.3]} 13. Bg3 {[%clk 0:04:20.6]} 13... Bf6 {[%clk 0:03:57.6]} 14.
O-O {[%clk 0:04:15.8]} 14... e5 {[%clk 0:03:55.9]} 15. Bf5 {[%clk 0:04:03.1]}
15... exd4 {[%clk 0:03:32.7]} 16. exd4 {[%clk 0:04:03]} 16... Re8 {[%clk
0:03:27.5]} 17. Qg4 {[%clk 0:03:49]} 17... Nf8 {[%clk 0:03:18.2]} 18. Rfe1
{[%clk 0:03:38.9]} 18... Bxf5 {[%clk 0:03:10]} 19. Qxf5 {[%clk 0:03:38.8]} 19...
Bxd4 {[%clk 0:03:06]} 20. Bd6 {[%clk 0:03:31.8]} 20... Ne6 {[%clk 0:02:59.9]}
21. Rab1 {[%clk 0:03:25.9]} 21... Bxc5 {[%clk 0:02:56.8]} 22. Rxe6 {[%clk
0:03:02.5]} 22... fxe6 {[%clk 0:02:49.6]} 23. Qg6 {[%clk 0:02:42.5]} 23... Bxd6
{[%clk 0:02:47.8]} 24. Re1 {[%clk 0:02:37.4]} 24... e5 {[%clk 0:02:40.2]} 25.
Re3 {[%clk 0:02:23.1]} 25... Qf6 {[%clk 0:02:38.7]} 26. Qxf6 {[%clk 0:02:10.2]}
26... gxf6 {[%clk 0:02:37.7]} 27. Rg3+ {[%clk 0:02:03.4]} 27... Kh7 {[%clk
0:02:35.7]} 28. Ne2 {[%clk 0:02:00.7]} 28... e4 {[%clk 0:02:34]} 29. Rb3 {[%clk
0:01:54.3]} 29... b6 {[%clk 0:02:29.2]} 30. g3 {[%clk 0:01:52.3]} 30... f5
{[%clk 0:02:21]} 31. Nd4 {[%clk 0:01:48]} 31... c5 {[%clk 0:02:12.8]} 32. Nxf5
{[%clk 0:01:44.4]} 32... Be5 {[%clk 0:02:09.8]} 33. a4 {[%clk 0:01:32.8]} 33...
Rab8 {[%clk 0:02:00.6]} 34. Kg2 {[%clk 0:01:24.1]} 34... Kg6 {[%clk 0:01:59.2]}
35. Nh4+ {[%clk 0:01:20.1]} 35... Kf7 {[%clk 0:01:46.9]} 36. Nf5 {[%clk
0:01:17.1]} 36... Kg6 {[%clk 0:01:37.6]} 37. Nh4+ {[%clk 0:01:15.2]} 37... Kh7
{[%clk 0:01:36]} 38. Nf5 {[%clk 0:01:13.2]} 38... Bf6 {[%clk 0:01:33.5]} 39. Nd6
{[%clk 0:01:08.1]} 39... Re6 {[%clk 0:01:19.8]} 40. Nf5 {[%clk 0:01:05.5]} 40...
d4 {[%clk 0:01:11.5]} 41. Kf1 {[%clk 0:00:57.8]} 41... Kg6 {[%clk 0:01:03.7]}
42. g4 {[%clk 0:00:55.4]} 42... h5 {[%clk 0:01:02.1]} 43. h3 {[%clk 0:00:53.5]}
43... hxg4 {[%clk 0:01:01]} 44. hxg4 {[%clk 0:00:52.7]} 44... Rbe8 {[%clk
0:00:52.5]} 45. Rh3 {[%clk 0:00:44.7]} 45... Kg5 {[%clk 0:00:44.8]} 46. Nh6
{[%clk 0:00:31.6]} 46... Rh8 {[%clk 0:00:39.7]} 47. Nf7+ {[%clk 0:00:28.6]}
47... Kg6 {[%clk 0:00:38.6]} 48. Nxh8+ {[%clk 0:00:27.8]} 48... Bxh8 {[%clk
0:00:31.9]} 49. Rxh8 {[%clk 0:00:27.7]} 49... Re7 {[%clk 0:00:31.3]} 50. Rh3
{[%clk 0:00:25]} 50... Kg5 {[%clk 0:00:29.9]} 51. Rg3 {[%clk 0:00:22.5]} 51...
e3 {[%clk 0:00:26.2]} 52. fxe3 {[%clk 0:00:21.5]} 52... dxe3 {[%clk 0:00:25.3]}
53. Ke2 {[%clk 0:00:21.1]} 53... Kf4 {[%clk 0:00:24.5]} 54. Rh3 {[%clk
0:00:18.5]} 54... Kxg4 {[%clk 0:00:15.7]} 55. Rxe3 {[%clk 0:00:18.4]} 55...
Rxe3+ {[%clk 0:00:14.3]} 56. Kxe3 {[%clk 0:00:18.3]} 56... Kf5 {[%clk
0:00:13.6]} 57. Kd3 {[%clk 0:00:14.9]} 57... Ke5 {[%clk 0:00:12.3]} 58. Kc4
{[%clk 0:00:14.8]} 58... Kd6 {[%clk 0:00:11.2]} 59. Kb5 {[%clk 0:00:13.7]} 59...
Kc7 {[%clk 0:00:10.5]} 60. Ka6 {[%clk 0:00:12.6]} 60... Kb8 {[%clk 0:00:09.9]}
61. b3 {[%clk 0:00:11.7]} 61... Ka8 {[%clk 0:00:08.5]} 62. Kb5 {[%clk
0:00:10.5]} 62... Kb8 {[%clk 0:00:08.4]} 63. Kc6 {[%clk 0:00:09.2]} 63... Kc8
{[%clk 0:00:07.4]} 64. Kb5 {[%clk 0:00:08.5]} 64... Kb7 {[%clk 0:00:06.6]} 65.
a5 {[%clk 0:00:07.1]} 65... a6+ {[%clk 0:00:05.4]} 66. Kc4 {[%clk 0:00:05.3]}
66... Kc6 {[%clk 0:00:01.8]} 67. b4 {[%clk 0:00:03.3]} 67... bxa5 {[%clk
0:00:01.5]} 68. bxa5 {[%clk 0:00:01.7]} 68... Kd6 {[%clk 0:00:00.7]} 0-1

[Event "Live Chess"]
[Site "Chess.com"]
[Date "2024.06.01"]
[Round "-"]
[White "LL220284LL"]
[Black "Dhaydon19"]
[Result "1/2-1/2"]
[WhiteElo "2565"]
[BlackElo "2690"]
[TimeControl "300"]
[EndTime "12:08:42 PDT"]
[Termination "Game drawn by repetition"]

1. Nf3 {[%clk 0:04:57.6]} 1... d5 {[%clk 0:04:58.8]} 2. d3 {[%clk 0:04:56]} 2...
Nf6 {[%clk 0:04:58.4]} 3. Nbd2 {[%clk 0:04:55.5]} 3... b6 {[%clk 0:04:57.5]} 4.
g3 {[%clk 0:04:54.5]} 4... Bb7 {[%clk 0:04:56.4]} 5. Bg2 {[%clk 0:04:54.1]} 5...
e6 {[%clk 0:04:55.9]} 6. O-O {[%clk 0:04:53.4]} 6... Be7 {[%clk 0:04:53.4]} 7.
Qe1 {[%clk 0:04:51.6]} 7... O-O {[%clk 0:04:53]} 8. e4 {[%clk 0:04:50.1]} 8...
dxe4 {[%clk 0:04:52.2]} 9. dxe4 {[%clk 0:04:50]} 9... Ba6 {[%clk 0:04:51.3]} 10.
c4 {[%clk 0:04:47.5]} 10... Nc6 {[%clk 0:04:48.4]} 11. Qe2 {[%clk 0:04:34.2]}
11... Nd7 {[%clk 0:04:43.7]} 12. Rd1 {[%clk 0:04:30.5]} 12... Qc8 {[%clk
0:04:42.1]} 13. b3 {[%clk 0:04:26.9]} 13... Bf6 {[%clk 0:04:39.9]} 14. Rb1
{[%clk 0:04:25.9]} 14... Rd8 {[%clk 0:04:33.1]} 15. Nf1 {[%clk 0:04:24.1]} 15...
Bb7 {[%clk 0:04:27.5]} 16. Bb2 {[%clk 0:04:20.5]} 16... Bxb2 {[%clk 0:04:23.3]}
17. Rxb2 {[%clk 0:04:20.4]} 17... Nde5 {[%clk 0:04:20.3]} 18. Rbd2 {[%clk
0:04:17.4]} 18... Rxd2 {[%clk 0:04:18.4]} 19. Rxd2 {[%clk 0:04:17.3]} 19...
Nxf3+ {[%clk 0:04:16.5]} 20. Qxf3 {[%clk 0:04:15.3]} 20... Qe8 {[%clk
0:04:11.8]} 21. Qd1 {[%clk 0:04:13]} 21... Rd8 {[%clk 0:04:08.6]} 22. Ne3 {[%clk
0:04:12.3]} 22... Rxd2 {[%clk 0:04:06.1]} 23. Qxd2 {[%clk 0:04:12.2]} 23... Qe7
{[%clk 0:04:00.6]} 24. h3 {[%clk 0:04:07.1]} 24... h6 {[%clk 0:03:59.2]} 25. Kh2
{[%clk 0:04:01.8]} 25... Ne5 {[%clk 0:03:51.7]} 26. f4 {[%clk 0:03:58.2]} 26...
Nd7 {[%clk 0:03:50.4]} 27. e5 {[%clk 0:03:49.4]} 27... Bxg2 {[%clk 0:03:48.8]}
28. Nxg2 {[%clk 0:03:48.4]} 28... Nc5 {[%clk 0:03:47.6]} 29. Qd4 {[%clk
0:03:42.3]} 29... a5 {[%clk 0:03:46.4]} 30. Ne3 {[%clk 0:03:35.9]} 30... Qe8
{[%clk 0:03:45.6]} 31. Qd2 {[%clk 0:03:28.4]} 31... Qc6 {[%clk 0:03:44.2]} 32.
Qg2 {[%clk 0:03:27.7]} 32... Qd7 {[%clk 0:03:42.6]} 33. Ng4 {[%clk 0:03:25]}
33... Qd3 {[%clk 0:03:38]} 34. Nf2 {[%clk 0:03:22.1]} 34... Qb1 {[%clk
0:03:35.7]} 35. Ng4 {[%clk 0:03:19.1]} 35... h5 {[%clk 0:03:33.6]} 36. Ne3
{[%clk 0:03:15.7]} 36... Qc1 {[%clk 0:03:30.2]} 37. Nc2 {[%clk 0:03:11.4]} 37...
g6 {[%clk 0:03:24.8]} 38. h4 {[%clk 0:03:06.3]} 38... Nd3 {[%clk 0:03:18.5]} 39.
Nd4 {[%clk 0:03:01.8]} 39... Qe3 {[%clk 0:03:12.9]} 40. Nf3 {[%clk 0:02:56.7]}
40... Nf2 {[%clk 0:03:12]} 41. Ng5 {[%clk 0:02:53.3]} 41... Ng4+ {[%clk
0:03:11]} 42. Kh3 {[%clk 0:02:50.6]} 42... Nh6 {[%clk 0:03:07.8]} 43. Qa8+
{[%clk 0:02:43.8]} 43... Kg7 {[%clk 0:03:06.8]} 44. Qd8 {[%clk 0:02:34.7]} 44...
Qe2 {[%clk 0:02:47.4]} 45. Qf6+ {[%clk 0:02:32.8]} 45... Kg8 {[%clk 0:02:45.2]}
46. Qd8+ {[%clk 0:02:31.2]} 46... Kg7 {[%clk 0:02:43.9]} 47. Qf6+ {[%clk
0:02:29.6]} 47... Kg8 {[%clk 0:02:42.8]} 48. Qd8+ {[%clk 0:02:29]} 48... Kg7
{[%clk 0:02:42.2]} 1/2-1/2

[Event "Live Chess"]
[Site "Chess.com"]
[Date "2024.06.01"]
[Round "-"]
[White "OliWally08"]
[Black "chess5013"]
[Result "0-1"]
[WhiteElo "1264"]
[BlackElo "1296"]
[TimeControl "300"]
[EndTime "12:08:44 PDT"]
[Termination "chess5013 won on time"]

1. e4 {[%clk 0:04:57.6]} 1... c6 {[%clk 0:04:58.7]} 2. Nc3 {[%clk 0:04:55.8]}
2... d5 {[%clk 0:04:57.8]} 3. Nf3 {[%clk 0:04:55.1]} 3... dxe4 {[%clk
0:04:55.2]} 4. Nxe4 {[%clk 0:04:55]} 4... Bf5 {[%clk 0:04:53.7]} 5. Ng3 {[%clk
0:04:52.2]} 5... Bg6 {[%clk 0:04:52.8]} 6. Bc4 {[%clk 0:04:47.1]} 6... e6 {[%clk
0:04:51.2]} 7. O-O {[%clk 0:04:44.2]} 7... Nd7 {[%clk 0:04:49.5]} 8. Re1 {[%clk
0:04:42.8]} 8... Ngf6 {[%clk 0:04:48.4]} 9. d3 {[%clk 0:03:45.3]} 9... Bd6
{[%clk 0:04:46.1]} 10. Ne4 {[%clk 0:03:25.5]} 10... Nxe4 {[%clk 0:04:37.1]} 11.
dxe4 {[%clk 0:03:15]} 11... Qc7 {[%clk 0:04:32.2]} 12. e5 {[%clk 0:03:14.1]}
12... Bxe5 {[%clk 0:04:22.9]} 13. Nxe5 {[%clk 0:03:12.3]} 13... Nxe5 {[%clk
0:04:21.8]} 14. Bb3 {[%clk 0:03:05.8]} 14... O-O {[%clk 0:04:17.7]} 15. Bf4
{[%clk 0:03:03.9]} 15... f6 {[%clk 0:04:06.7]} 16. Qe2 {[%clk 0:02:56.9]} 16...
Kh8 {[%clk 0:03:49.9]} 17. Bxe5 {[%clk 0:02:55.5]} 17... fxe5 {[%clk 0:03:48.9]}
18. Qxe5 {[%clk 0:02:39.7]} 18... Qxe5 {[%clk 0:03:47.2]} 19. Rxe5 {[%clk
0:02:38.7]} 19... Rae8 {[%clk 0:03:37.6]} 20. c3 {[%clk 0:02:36.9]} 20... Bf5
{[%clk 0:03:30.3]} 21. Rae1 {[%clk 0:02:34.9]} 21... Rf6 {[%clk 0:03:26.5]} 22.
h3 {[%clk 0:02:11.6]} 22... h5 {[%clk 0:03:22.4]} 23. f3 {[%clk 0:01:59.1]}
23... Bg6 {[%clk 0:02:15]} 24. Rxe6 {[%clk 0:01:53.7]} 24... Rfxe6 {[%clk
0:02:09.6]} 25. Rxe6 {[%clk 0:01:52.3]} 25... Rxe6 {[%clk 0:02:04.9]} 26. Bxe6
{[%clk 0:01:52.2]} 26... Bb1 {[%clk 0:02:01.8]} 27. Kf2 {[%clk 0:01:47.5]} 27...
Kh7 {[%clk 0:01:55]} 28. Bf7 {[%clk 0:01:38.1]} 28... g6 {[%clk 0:01:49.2]} 29.
g4 {[%clk 0:01:29.7]} 29... h4 {[%clk 0:01:39.8]} 30. a3 {[%clk 0:01:11.4]}
30... Kg7 {[%clk 0:01:36.9]} 31. Be6 {[%clk 0:01:07.2]} 31... g5 {[%clk
0:01:30]} 32. Ke3 {[%clk 0:01:03.3]} 32... Kf6 {[%clk 0:01:27.8]} 33. Bc8 {[%clk
0:00:55.2]} 33... b6 {[%clk 0:01:24.7]} 34. f4 {[%clk 0:00:53.4]} 34... c5
{[%clk 0:01:15.8]} 35. b4 {[%clk 0:00:36.2]} 35... cxb4 {[%clk 0:01:11.8]} 36.
axb4 {[%clk 0:00:31.4]} 36... Bc2 {[%clk 0:01:08.1]} 37. Kd4 {[%clk 0:00:29.9]}
37... Bd1 {[%clk 0:01:03]} 38. fxg5+ {[%clk 0:00:21.5]} 38... Kxg5 {[%clk
0:01:01.2]} 39. Bb7 {[%clk 0:00:19.3]} 39... Be2 {[%clk 0:00:55.1]} 40. c4
{[%clk 0:00:17.7]} 40... Bf1 {[%clk 0:00:52.8]} 41. c5 {[%clk 0:00:14.8]} 41...
Bxh3 {[%clk 0:00:48.6]} 42. c6 {[%clk 0:00:12.6]} 42... Bxg4 {[%clk 0:00:46.3]}
43. c7 {[%clk 0:00:10.5]} 43... h3 {[%clk 0:00:43.4]} 44. c8=Q {[%clk
0:00:09.1]} 44... Bxc8 {[%clk 0:00:42.1]} 45. Bxc8 {[%clk 0:00:08]} 45... h2
{[%clk 0:00:40]} 46. Bb7 {[%clk 0:00:07.6]} 46... Kf6 {[%clk 0:00:38.5]} 47. Bh1
{[%clk 0:00:05.4]} 47... Ke7 {[%clk 0:00:37.4]} 48. Kd5 {[%clk 0:00:05.3]} 48...
Kd7 {[%clk 0:00:36.4]} 49. b5 {[%clk 0:00:04.5]} 49... Kc7 {[%clk 0:00:34.4]}
50. Kc4 {[%clk 0:00:04.4]} 50... Kd6 {[%clk 0:00:31.6]} 51. Kb4 {[%clk
0:00:04.3]} 51... Kc7 {[%clk 0:00:29.4]} 52. Kc4 {[%clk 0:00:04.2]} 52... Kc8
{[%clk 0:00:26.1]} 53. Kd5 {[%clk 0:00:04.1]} 53... Kd7 {[%clk 0:00:24.7]} 54.
Ke5 {[%clk 0:00:03.3]} 54... Ke7 {[%clk 0:00:23.3]} 55. Ke4 {[%clk 0:00:03.2]}
55... Ke6 {[%clk 0:00:22]} 56. Kf3 {[%clk 0:00:03.1]} 56... Kd5 {[%clk
0:00:19.7]} 57. Kg3+ {[%clk 0:00:03]} 57... Kc5 {[%clk 0:00:18.4]} 58. Kxh2
{[%clk 0:00:02.9]} 58... Kxb5 {[%clk 0:00:17.5]} 59. Kg3 {[%clk 0:00:02]} 59...
a5 {[%clk 0:00:16.5]} 60. Be4 {[%clk 0:00:01.9]} 60... a4 {[%clk 0:00:15.2]} 61.
Bd5 {[%clk 0:00:01.8]} 61... Kb4 {[%clk 0:00:14.1]} 62. Ba2 {[%clk 0:00:01.5]}
62... Ka3 {[%clk 0:00:12]} 63. Bg8 {[%clk 0:00:01.4]} 63... b5 {[%clk
0:00:11.1]} 64. Kf3 {[%clk 0:00:01.2]} 64... b4 {[%clk 0:00:10.2]} 65. Ke3
{[%clk 0:00:01.1]} 65... b3 {[%clk 0:00:09.3]} 66. Kd3 {[%clk 0:00:00.4]} 66...
Ka2 {[%clk 0:00:06.6]} 0-1

[Event "Live Chess"]
[Site "Chess.com"]
[Date "2024.06.01"]
[Round "-"]
[White "cymbalshift"]
[Black "Stanbad1"]
[Result "0-1"]
[WhiteElo "1785"]
[BlackElo "2679"]
[TimeControl "300"]
[EndTime "12:08:53 PDT"]
[Termination "Stanbad1 won on time"]

1. d4 {[%clk 0:04:57.7]} 1... Nf6 {[%clk 0:04:58.8]} 2. Nc3 {[%clk 0:04:55.6]}
2... d6 {[%clk 0:04:57.8]} 3. e4 {[%clk 0:04:54.4]} 3... Nbd7 {[%clk 0:04:55.4]}
4. f4 {[%clk 0:04:52.9]} 4... e5 {[%clk 0:04:54.2]} 5. dxe5 {[%clk 0:04:35.9]}
5... dxe5 {[%clk 0:04:52.1]} 6. fxe5 {[%clk 0:04:34.7]} 6... Nxe5 {[%clk
0:04:50.9]} 7. Qxd8+ {[%clk 0:04:33.4]} 7... Kxd8 {[%clk 0:04:50]} 8. Bf4 {[%clk
0:04:30.8]} 8... Bd6 {[%clk 0:04:49.1]} 9. O-O-O {[%clk 0:04:29.4]} 9... Ke7
{[%clk 0:04:48.4]} 10. Nf3 {[%clk 0:04:24.8]} 10... Nd3+ {[%clk 0:04:46.1]} 11.
cxd3 {[%clk 0:04:06.2]} 11... Bxf4+ {[%clk 0:04:44.4]} 12. Kb1 {[%clk
0:04:05.7]} 12... Rd8 {[%clk 0:04:43.9]} 13. d4 {[%clk 0:04:01.7]} 13... c6
{[%clk 0:04:40.3]} 14. Bc4 {[%clk 0:03:04.9]} 14... Ng4 {[%clk 0:04:35.6]} 15.
Rde1 {[%clk 0:02:38.3]} 15... b5 {[%clk 0:04:23.2]} 16. Bb3 {[%clk 0:02:34.8]}
16... a5 {[%clk 0:04:21.1]} 17. d5 {[%clk 0:02:24.8]} 17... b4 {[%clk
0:04:18.7]} 18. Ne2 {[%clk 0:02:12.8]} 18... Bc7 {[%clk 0:04:16.3]} 19. h3
{[%clk 0:01:57.7]} 19... Nf2 {[%clk 0:04:12.3]} 20. Rhf1 {[%clk 0:01:53.5]}
20... Nxe4 {[%clk 0:04:11.2]} 21. Ned4 {[%clk 0:01:46.1]} 21... cxd5 {[%clk
0:04:06.7]} 22. Bxd5 {[%clk 0:01:43.2]} 22... Kd6 {[%clk 0:04:06.2]} 23. Bxe4
{[%clk 0:01:31.3]} 23... Rb8 {[%clk 0:04:02.7]} 24. Nc6 {[%clk 0:01:21.5]} 24...
Be6 {[%clk 0:03:57.1]} 25. Rd1+ {[%clk 0:01:14.7]} 25... Kc5 {[%clk 0:03:56]}
26. Rc1+ {[%clk 0:01:09.3]} 26... Kb6 {[%clk 0:03:54.4]} 27. Nxb8 {[%clk
0:00:57.8]} 27... Bxb8 {[%clk 0:03:52.2]} 28. Rc6+ {[%clk 0:00:46.7]} 28... Ka7
{[%clk 0:03:49.2]} 29. Rfc1 {[%clk 0:00:40.7]} 29... Bf4 {[%clk 0:03:45.7]} 30.
R1c5 {[%clk 0:00:38.2]} 30... Rd1+ {[%clk 0:03:43.1]} 31. Kc2 {[%clk 0:00:33.3]}
31... Rc1+ {[%clk 0:03:41.3]} 32. Kd3 {[%clk 0:00:29.7]} 32... Rd1+ {[%clk
0:03:17.7]} 33. Ke2 {[%clk 0:00:27.7]} 33... Ra1 {[%clk 0:03:12.3]} 34. Rxa5+
{[%clk 0:00:25.1]} 34... Kb8 {[%clk 0:03:11.4]} 35. Rb6+ {[%clk 0:00:16.1]}
35... Kc8 {[%clk 0:03:07.4]} 36. Ra8+ {[%clk 0:00:14]} 36... Kc7 {[%clk
0:03:05.7]} 37. Rb7+ {[%clk 0:00:13.6]} 37... Kd6 {[%clk 0:03:04.8]} 38. Nd4
{[%clk 0:00:11.3]} 38... Ke5 {[%clk 0:03:02.6]} 39. Rxb4 {[%clk 0:00:07.5]}
39... Bxa2 {[%clk 0:02:57.9]} 40. Ra5+ {[%clk 0:00:03.4]} 40... Kd6 {[%clk
0:02:55.9]} 41. Nf5+ {[%clk 0:00:00.2]} 41... Ke6 {[%clk 0:02:53.8]} 0-1

[Event "Live Chess"]
[Site "Chess.com"]
[Date "2024.06.01"]
[Round "-"]
[White "bonantagulo"]
[Black "Brooms1989"]
[Result "1-0"]
[WhiteElo "2046"]
[BlackElo "1092"]
[TimeControl "300"]
[EndTime "12:09:03 PDT"]
[Termination "bonantagulo won by resignation"]

1. e4 {[%clk 0:04:56.1]} 1... e5 {[%clk 0:04:56.1]} 2. f4 {[%clk 0:04:52.7]}
2... d5 {[%clk 0:04:54.1]} 3. exd5 {[%clk 0:04:51.8]} 3... exf4 {[%clk
0:04:52.7]} 4. Nf3 {[%clk 0:04:50.6]} 4... Nf6 {[%clk 0:04:51.3]} 5. Bc4 {[%clk
0:04:49.7]} 5... Nxd5 {[%clk 0:04:37.8]} 6. O-O {[%clk 0:04:46.3]} 6... Nb6
{[%clk 0:04:27.8]} 7. Bb3 {[%clk 0:04:44.2]} 7... Be6 {[%clk 0:04:20.5]} 8. Re1
{[%clk 0:04:36.6]} 8... Qd7 {[%clk 0:03:51.5]} 9. d4 {[%clk 0:04:29.5]} 9... c6
{[%clk 0:03:44.2]} 10. Ne5 {[%clk 0:04:23.4]} 10... Qe7 {[%clk 0:03:04.1]} 11.
Nxf7 {[%clk 0:04:16.9]} 1-0

[Event "Live Chess"]
[Site "Chess.com"]
[Date "2024.06.01"]
[Round "-"]
[White "grillage"]
[Black "Tushinskiy"]
[Result "0-1"]
[WhiteElo "1876"]
[BlackElo "2230"]
[TimeControl "300"]
[EndTime "12:09:48 PDT"]
[Termination "Tushinskiy won by resignation"]

1. d4 {[%clk 0:04:57.5]} 1... d5 {[%clk 0:04:58.9]} 2. Nf3 {[%clk 0:04:56.5]}
2... c6 {[%clk 0:04:58.8]} 3. c4 {[%clk 0:04:55.8]} 3... Nf6 {[%clk 0:04:58]} 4.
Qc2 {[%clk 0:04:55.4]} 4... e6 {[%clk 0:04:57.7]} 5. cxd5 {[%clk 0:04:53.7]}
5... exd5 {[%clk 0:04:57.6]} 6. Nc3 {[%clk 0:04:51]} 6... Bd6 {[%clk 0:04:56.8]}
7. Bg5 {[%clk 0:04:49.9]} 7... O-O {[%clk 0:04:54.9]} 8. e3 {[%clk 0:04:49.1]}
8... h6 {[%clk 0:04:52.9]} 9. Bh4 {[%clk 0:04:47.4]} 9... Bg4 {[%clk 0:04:52.3]}
10. Ne5 {[%clk 0:04:45.1]} 10... Bh5 {[%clk 0:04:50.6]} 11. Bd3 {[%clk
0:04:43.6]} 11... Nbd7 {[%clk 0:04:46.5]} 12. Nxd7 {[%clk 0:04:41.6]} 12... Qxd7
{[%clk 0:04:45.4]} 13. Bxf6 {[%clk 0:04:40.8]} 13... gxf6 {[%clk 0:04:45.3]} 14.
h3 {[%clk 0:04:34.4]} 14... Kg7 {[%clk 0:04:44.1]} 15. g4 {[%clk 0:04:32.8]}
15... Bg6 {[%clk 0:04:43.4]} 16. O-O-O {[%clk 0:04:30.3]} 16... Rac8 {[%clk
0:04:40.7]} 17. Kb1 {[%clk 0:04:27.2]} 17... b5 {[%clk 0:04:34.1]} 18. h4 {[%clk
0:04:23.1]} 18... a5 {[%clk 0:04:31.9]} 19. h5 {[%clk 0:04:21]} 19... Bxd3
{[%clk 0:04:30.7]} 20. Qxd3 {[%clk 0:04:20.6]} 20... a4 {[%clk 0:04:26.9]} 21.
f4 {[%clk 0:04:10.4]} 21... a3 {[%clk 0:04:24.3]} 22. b3 {[%clk 0:04:09.2]}
22... b4 {[%clk 0:04:22.6]} 23. Ne2 {[%clk 0:04:02.6]} 23... Rce8 {[%clk
0:04:21.6]} 24. g5 {[%clk 0:03:58.6]} 24... Qe6 {[%clk 0:04:12.7]} 25. gxh6+
{[%clk 0:03:49.4]} 25... Kxh6 {[%clk 0:04:09.9]} 26. Ng3 {[%clk 0:03:44.4]}
26... Kg7 {[%clk 0:04:06.6]} 27. h6+ {[%clk 0:03:32.5]} 27... Kh8 {[%clk
0:04:05.5]} 28. Rde1 {[%clk 0:03:14.3]} 28... Rg8 {[%clk 0:04:03.7]} 29. Nf5
{[%clk 0:03:08.4]} 29... Rg2 {[%clk 0:04:02.4]} 30. Reg1 {[%clk 0:02:56.7]}
30... Rxg1+ {[%clk 0:03:52.2]} 31. Rxg1 {[%clk 0:02:55.2]} 31... Rg8 {[%clk
0:03:42.4]} 32. Rxg8+ {[%clk 0:02:42.4]} 32... Kxg8 {[%clk 0:03:42.3]} 33. h7+
{[%clk 0:02:33.5]} 33... Kh8 {[%clk 0:03:41.2]} 34. Nxd6 {[%clk 0:02:26.8]}
34... Qxd6 {[%clk 0:03:39.9]} 35. Qf1 {[%clk 0:02:02.2]} 35... Qe6 {[%clk
0:03:33.4]} 36. Qf2 {[%clk 0:01:53]} 36... Kxh7 {[%clk 0:03:28.2]} 37. Qh4+
{[%clk 0:01:51.8]} 37... Kg7 {[%clk 0:03:27]} 38. Qg3+ {[%clk 0:01:51.1]} 38...
Kf8 {[%clk 0:03:26.1]} 39. Qh4 {[%clk 0:01:50.5]} 39... Qe4+ {[%clk 0:03:18.9]}
40. Kc1 {[%clk 0:01:44.1]} 40... Qxe3+ {[%clk 0:03:17.7]} 41. Kc2 {[%clk
0:01:43.2]} 41... Qc3+ {[%clk 0:03:08.7]} 42. Kd1 {[%clk 0:01:40]} 42... Qa1+
{[%clk 0:03:07.4]} 43. Ke2 {[%clk 0:01:36.7]} 43... Qxa2+ {[%clk 0:03:06.5]} 44.
Kf3 {[%clk 0:01:36.1]} 44... Qxb3+ {[%clk 0:03:04.1]} 45. Kg4 {[%clk 0:01:35.7]}
45... Qd1+ {[%clk 0:03:00.6]} 46. Kf5 {[%clk 0:01:34.2]} 46... Qxd4 {[%clk
0:02:59.5]} 47. Qh8+ {[%clk 0:01:29.9]} 47... Ke7 {[%clk 0:02:58.4]} 48. Qc8
{[%clk 0:01:27]} 48... Qe4+ {[%clk 0:02:56]} 49. Kg4 {[%clk 0:01:25.4]} 49...
Qe6+ {[%clk 0:02:55.9]} 0-1

[Event "Live Chess"]
[Site "Chess.com"]
[Date "2024.06.01"]
[Round "-"]
[White "Ninifu"]
[Black "LanceMaster23"]
[Result "1-0"]
[WhiteElo "2019"]
[BlackElo "1786"]
[TimeControl "300"]
[EndTime "12:09:52 PDT"]
[Termination "Ninifu won by resignation"]

1. d4 {[%clk 0:04:58.5]} 1... Nf6 {[%clk 0:04:58.7]} 2. c4 {[%clk 0:04:57.3]}
2... e6 {[%clk 0:04:57.5]} 3. Nc3 {[%clk 0:04:55.9]} 3... Bb4 {[%clk 0:04:56.8]}
4. f3 {[%clk 0:04:55.1]} 4... c5 {[%clk 0:04:56.2]} 5. d5 {[%clk 0:04:53.8]}
5... d6 {[%clk 0:04:53.9]} 6. e4 {[%clk 0:04:53]} 6... Bxc3+ {[%clk 0:04:48.4]}
7. bxc3 {[%clk 0:04:51.9]} 7... Qa5 {[%clk 0:04:47.1]} 8. Bd2 {[%clk 0:04:47.2]}
8... e5 {[%clk 0:04:38.7]} 9. Bd3 {[%clk 0:04:46.2]} 9... Nbd7 {[%clk 0:04:36]}
10. Ne2 {[%clk 0:04:45]} 10... O-O {[%clk 0:04:34.2]} 11. h4 {[%clk 0:04:39.1]}
11... h5 {[%clk 0:04:28.9]} 12. Qc2 {[%clk 0:04:24.4]} 12... a6 {[%clk
0:04:11.7]} 13. O-O {[%clk 0:04:18.6]} 13... b5 {[%clk 0:03:27.8]} 14. a4 {[%clk
0:03:59]} 14... bxa4 {[%clk 0:03:00.7]} 15. Rxa4 {[%clk 0:03:57.1]} 15... Qc7
{[%clk 0:02:58.3]} 16. Ng3 {[%clk 0:03:40.8]} 16... Nb6 {[%clk 0:02:44.7]} 17.
Raa1 {[%clk 0:03:38.6]} 17... Qe7 {[%clk 0:02:23.7]} 18. Bg5 {[%clk 0:03:32.1]}
18... Nbd7 {[%clk 0:02:05.5]} 19. Nxh5 {[%clk 0:03:28.1]} 19... g6 {[%clk
0:01:49.6]} 20. Nxf6+ {[%clk 0:03:20.8]} 20... Nxf6 {[%clk 0:01:47.5]} 21. f4
{[%clk 0:03:13.5]} 21... Kg7 {[%clk 0:01:07.9]} 22. fxe5 {[%clk 0:03:11.6]}
22... Qxe5 {[%clk 0:01:07.5]} 23. Bxf6+ {[%clk 0:03:10.5]} 23... Qxf6 {[%clk
0:01:07.4]} 24. Rxf6 {[%clk 0:03:09.6]} 24... Kxf6 {[%clk 0:01:07.3]} 25. Rf1+
{[%clk 0:03:07.1]} 25... Kg7 {[%clk 0:01:06.7]} 26. Qf2 {[%clk 0:03:04.6]} 26...
f5 {[%clk 0:01:05.2]} 27. Qg3 {[%clk 0:03:01.6]} 27... f4 {[%clk 0:01:01.7]} 28.
Rxf4 {[%clk 0:02:57.2]} 28... Rxf4 {[%clk 0:00:57.8]} 29. Qxf4 {[%clk
0:02:56.5]} 29... a5 {[%clk 0:00:47]} 30. Qxd6 {[%clk 0:02:53.6]} 30... a4
{[%clk 0:00:43.2]} 31. e5 {[%clk 0:02:51.1]} 31... Bf5 {[%clk 0:00:40.6]} 32.
Bxf5 {[%clk 0:02:41.3]} 32... gxf5 {[%clk 0:00:40.2]} 33. Qf6+ {[%clk
0:02:28.3]} 33... Kg8 {[%clk 0:00:31.6]} 34. e6 {[%clk 0:01:30.7]} 34... a3
{[%clk 0:00:21.6]} 35. Qf7+ {[%clk 0:01:29.6]} 35... Kh8 {[%clk 0:00:19.9]} 36.
e7 {[%clk 0:01:27.3]} 36... a2 {[%clk 0:00:12.8]} 37. e8=Q+ {[%clk 0:01:25.4]}
37... Rxe8 {[%clk 0:00:11.9]} 38. Qxe8+ {[%clk 0:01:24.9]} 38... Kg7 {[%clk
0:00:11.2]} 39. Qa8 {[%clk 0:01:24.5]} 1-0